Cogmind - Beta 17.1 @@@ ROGUE MODE // 2026.09.07 @ 01:28:16 Player: Boxplot Result: Destroyed by Y-45 Defender with Beam Rifle Performance ------------- Evolutions (2) 1000 Regions Visited (5) 1000 Robots Destroyed (175) 875 Value Destroyed (5007) 5007 Prototype IDs (7) 140 Alien Tech Used (0) 0 Bonus (70) 70 TOTAL SCORE: 8092 Bonus ------- High Alert Combat Kills 628 Friendly Fire -558 Cogmind --------- Core Integrity 0/550 Matter 268/300 Energy 290/290 System Corruption 5% Temperature Cool (9) Movement Rolling (145) Ox4 Location -8/Storage Parts ------- > --- POWER (1) -------- Improved Deuterium Engine (fused) > --- PROPULSION (4) --- Light Treads Light Treads Wheel Compact Wheel > --- UTILITY (4) ------ Improved Heat Sink Huge Storage Unit Core Analyzer Hardened Medium Armor Plating > --- WEAPON (2) ------- Minigun Gauss Rifle > --- INVENTORY (25) --- Light Deuterium Engine Light Angular Momentum Engine Light Angular Momentum Engine Improved Hover Unit Improved Hover Unit Gravmag System Gravmag System Gravmag System Gravmag System Large Storage Unit High-capacity Storage Unit High-capacity Battery (250) Experimental Sensor Array Hacking Suite Hacking Suite Hacking Suite Authchip [Device] Authchip [Armor] Beamcaster Flak Gun Heavy Assault Cannon Guided Missile Launcher Peak State ------------ > --- POWER ------------ Improved Deuterium Engine > --- PROPULSION ------- Armored Treads Advanced Treads Wheel Wheel > --- UTILITY ---------- Huge Storage Unit Advanced Targeting Computer Core Analyzer Armor Integrity Analyzer > --- WEAPON ----------- Enhanced Autogun Gauss Rifle > --- INVENTORY -------- Light Deuterium Engine Light Angular Momentum Engine Light Treads Light Treads Improved Hover Unit Improved Hover Unit Gravmag System Gravmag System Gravmag System Gravmag System Improved Cooling System Large Storage Unit High-capacity Storage Unit High-capacity Battery Experimental Sensor Array Hardened Medium Armor Plating Hacking Suite Hacking Suite Hacking Suite Beamcaster Flak Gun Flak Gun Flak Gun Mini Grenade Launcher Missile Launcher [Rating: 40] Favorites ----------- Power Improved Ion Engine Engine Improved Ion Engine Power Core Light Nuclear Core Propulsion Wheel Treads Light Treads Wheel Wheel Utility Improved Heat Sink Device Improved Heat Sink Storage Huge Storage Unit Processor Core Analyzer Protection Hardened Medium Armor Plating Weapon Enhanced Autogun Energy Gun Particle Gun Ballistic Gun Enhanced Autogun Launcher Mini Grenade Launcher Build | -11 -10 -10 -9 -8 -8 ------- Run | Yrd Mat Min Mat Mat Sto Slots Evolved 4 | . . . 2 2 . Power . | . . . . . . Propulsion 2 | . . . 1 1 . Utility 2 | . . . 1 1 . Weapon . | . . . . . . Parts Attached 123 | 6 15 4 36 38 24 Power 13 | 1 4 1 5 2 . Engine 12 | 1 4 1 5 1 . Core 1 | . . . . 1 . Reactor . | . . . . . . Propulsion 45 | 2 4 1 12 14 12 Treads 26 | 1 2 1 8 8 6 Leg . | . . . . . . Wheel 19 | 1 2 . 4 6 6 Hover . | . . . . . . Flight . | . . . . . . Utility 34 | 1 3 1 6 14 9 Device 13 | . 2 1 2 5 3 Storage 5 | 1 1 . 1 2 . Processor 3 | . . . . 3 . Hackware . | . . . . . . Protection 13 | . . . 3 4 6 Artifact . | . . . . . . Weapon 31 | 2 4 1 13 8 3 Energy Gun 3 | . 1 . 1 . 1 Energy Cannon . | . . . . . . Ballistic Gun 25 | 2 3 . 11 8 1 Ballistic Cannon . | . . . . . . Launcher 3 | . . 1 1 . 1 Special Weapon . | . . . . . . Impact Weapon . | . . . . . . Slashing Weapon . | . . . . . . Piercing Weapon . | . . . . . . Special Melee Weapon . | . . . . . . Unidentified Prototypes 4 | . . . 3 . 1 Parts Lost 18 | . 4 . 1 6 7 Power 1 | . . . . 1 . Propulsion 9 | . 2 . . 3 4 Utility 4 | . . . 1 1 2 Weapon 4 | . 2 . . 1 1 Highest Loss Streak 4 | . 2 . 1 4 3 To Critical Strikes . | . . . . . . Average Backups 18 | 3 12 15 14 23 22 Power 1 | . 2 1 1 1 2 Propulsion 7 | 2 4 8 7 7 6 Utility 4 | . . 1 1 7 8 Weapon 5 | . 5 4 4 6 5 Tool/Special . | . . . . . . Unused Backups 62 | . 14 6 14 10 18 Power 8 | . 4 1 . . 3 Propulsion 20 | . . 1 9 4 6 Utility 11 | . 1 . 2 1 7 Weapon 23 | . 9 4 3 5 2 Tool/Special . | . . . . . . Average Slot Usage (%) 98 | . 96 100 98 98 98 Engine 10 | . 14 14 11 8 9 Treads 15 | . 13 14 11 18 17 Wheel 17 | . 13 14 21 17 17 Device 9 | . 10 14 11 9 5 Storage 10 | . 14 14 11 9 9 Processor 4 | . . . . 8 9 Protection 7 | . . . 8 8 11 Ballistic Gun 20 | . 26 27 21 17 17 Peak Build Rating 40 | 6 12 12 22 40 37 Average Rating 25 | 5 9 11 18 34 34 On Entrance 14 | . 6 11 12 22 36 Avg Prop Armor Cover (%) 12 | 12 13 14 8 14 12 Naked Turns . | . . . . . . Heaviest Build 114 | 13 33 28 54 107 114 Greatest Support 26 | 10 20 16 26 26 26 Greatest Overweight (x) 11 | 1 8 1 2 10 11 Average Overweight (x) 2 | . 1 1 1 4 4 Largest Inventory Capacity 25 | 8 15 15 15 25 25 Average Capacity 19 | 7 14 15 15 23 25 Most Carried 25 | 6 15 15 15 25 25 Average Carried 19 | 3 12 14 14 23 24 Final Capacity 25 | 8 15 15 15 25 25 Final Carried 25 | 6 15 15 15 25 24 Class Distribution -------------------- 77% | Scavenger-Mutant 22% | Mutant Dominant Class ---------------- Mutant | -10/Materials Mutant | -10/Mines Scavenger-Mutant | -9/Materials Scavenger-Mutant | -8/Materials Scavenger-Mutant | -8/Storage Resources | -11 -10 -10 -9 -8 -8 ----------- Run | Yrd Mat Min Mat Mat Sto Matter Collected 5089 | 288 430 138 999 1908 1326 Remotely . | . . . . . . Salvage Created 6674 | 86 622 276 1351 2716 1623 Parts 406 | 8 38 19 100 162 79 Haulers Intercepted 15 | . 2 . 5 6 2 Recyclers Shooed 6 | . 1 2 1 . 2 Parts Field Recycled . | . . . . . . Retrieved Matter . | . . . . . . Parts Self-Destructed . | . . . . . . Prevented . | . . . . . . Parts Restored . | . . . . . . Kills | -11 -10 -10 -9 -8 -8 ------- Run | Yrd Mat Min Mat Mat Sto Combat Hostiles Destroyed 125 | . 12 5 27 46 35 Guns 100 | . 12 1 17 39 31 AOE 25 | . . 4 10 7 4 Classes Destroyed 15 | 2 3 1 4 4 1 Worker 4 | . . . 1 3 . Builder 5 | . . . 1 4 . Tunneler 4 | 2 . 1 . 1 . Hauler 15 | . 2 . 5 6 2 Recycler 5 | 1 . . 1 2 1 Mechanic 1 | . . . . 1 . Operator 5 | . . . . 4 1 Watcher 8 | . 1 . 3 3 1 Swarmer 30 | . . 3 10 10 7 Grunt 64 | . 12 2 8 24 18 Brawler 3 | . . . 1 . 2 Protector 1 | . . . . . 1 Sentry 24 | . . . 8 9 7 Specialist 2 | . . . . 2 . Heavy 1 | . . . . 1 . Thug 3 | . . 3 . . . Best Kill Streak 7 | 3 5 5 5 7 7 Combat Bots Only 7 | . 5 5 5 6 7 Max Kills in Single Turn 4 | 1 1 3 4 4 4 Gunslinging 1 | . . . . . 1 Exploded 4 | . . 3 4 3 4 Melee . | . . . . . . Uniques/NPCs Destroyed . | . . . . . . Combat | -11 -10 -10 -9 -8 -8 -------- Run | Yrd Mat Min Mat Mat Sto Hostile Shots Fired 494 | . 80 18 84 180 132 Missed 121 | . 21 3 18 41 38 Hits 373 | . 59 15 66 139 94 Melee 4 | . . . . . 4 Projectile 369 | . 59 15 66 139 90 Critical Strikes 18 | . 2 1 1 6 8 Damage Taken 5721 | . 726 180 835 2457 1523 Core 812 | . 99 52 103 380 178 Absorbed by Shields . | . . . . . . Regen/Repaired (Parts) 244 | . . . 11 . 233 Core Remaining (%) 71 | 100 . 39 74 . . Volleys Fired 509 | 8 88 36 82 184 111 Largest 2 | 2 2 2 2 2 2 Hottest 85 | 40 85 50 50 56 75 Shots Fired 992 | 16 176 72 161 354 213 Gun 980 | 16 176 70 157 349 212 Cannon . | . . . . . . Launcher 12 | . . 2 4 5 1 Special . | . . . . . . Kinetic 969 | 16 166 70 157 349 211 Thermal 11 | . 10 . . . 1 Explosive 12 | . . 2 4 5 1 Electromagnetic . | . . . . . . Robot Hit Streak 25 | 4 12 13 14 25 11 Robot Miss Streak 13 | 2 4 2 6 5 13 Penetration Max . | . . . . . . Secondary Targets 9 | . . . . 5 4 Max Gunslinging Chain 1 | . . . . 1 1 Shots Hit Robots 712 | 9 128 49 106 270 150 Core Hits 389 | 3 36 28 53 150 119 Critical Kills 3 | . . 1 . . 2 Critical Parts Destroyed 2 | . . . . 1 1 Critical Strikes 7 | . 1 1 . 1 4 Burn 1 | . 1 . . . . Destroy 6 | . . 1 . 1 4 Melee Attacks . | . . . . . . Impact . | . . . . . . Slashing . | . . . . . . Piercing . | . . . . . . Sneak Attacks . | . . . . . . Combat Hostiles . | . . . . . . Follow-up Attacks . | . . . . . . Damage Inflicted 12078 | 94 1216 708 2031 5217 2812 Guns 10490 | 94 1216 436 1592 4681 2471 Cannons . | . . . . . . Explosions 1588 | . . 272 439 536 341 Melee . | . . . . . . Ramming . | . . . . . . Kinetic 10360 | 94 1086 436 1592 4681 2471 Thermal 130 | . 130 . . . . Explosive 1588 | . . 272 439 536 341 Electromagnetic . | . . . . . . Impact . | . . . . . . Slashing . | . . . . . . Piercing . | . . . . . . Highest Corruption 5 | . . . 2 . 5 Average Corruption 2 | . . . 2 . 3 Corruption Purged . | . . . . . . Corruption Blocked . | . . . . . . Effects 54 | . . . 28 . 26 Message Errors 18 | . . . 10 . 8 Matter Fused 8 | . . . 2 . 6 Heat Flow Errors 3 | . . . 1 . 2 Energy Discharges 7 | . . . 3 . 4 Parts Fused 3 | . . . 1 . 2 Data Loss (minor) 6 | . . . 6 . . Data Loss (major) 6 | . . . 4 . 2 Misfires 1 | . . . . . 1 Alerts 1 | . . . 1 . . Weapon Failures 1 | . . . . . 1 Overload Shots . | . . . . . . Overflow Damage 123 | . . 31 20 52 20 Projectiles . | . . . . . . Explosions 123 | . . 31 20 52 20 Melee . | . . . . . . Knockbacks . | . . . . . . Impact . | . . . . . . Kinetic . | . . . . . . Secondary . | . . . . . . Self-Inflicted Damage 106 | . . . 33 . 73 Shots 2 | . . . 1 . 1 Rammed . | . . . . . . Targets Rammed . | . . . . . . Kicked . | . . . . . . Crushed . | . . . . . . Highest Temperature 261 | . 44 . 216 15 261 Average Temperature 57 | . 13 . 94 6 71 Received Heat Transfer 2493 | . 435 51 315 954 738 Siege Activations . | . . . . . . Martial Activations . | . . . . . . Shielding Activations . | . . . . . . Robots Disrupted . | . . . . . . Combat Hostiles . | . . . . . . Robots Corrupted . | . . . . . . Combat Hostiles . | . . . . . . Parts Fried . | . . . . . . Impact Corruptions . | . . . . . . Robots Melted . | . . . . . . Combat Hostiles . | . . . . . . Parts Melted 2 | . 2 . . . . Heat Transferred 407 | . 407 . . . . Parts Sabotaged . | . . . . . . Parts Stolen . | . . . . . . Parts Stripped . | . . . . . . Power Chain Reactions . | . . . . . . Alert | -11 -10 -10 -9 -8 -8 ------- Run | Yrd Mat Min Mat Mat Sto Maximum Alert Level 3 | . . . 1 3 3 Low Security (%) 43 | 100 100 100 74 9 . Level 1 32 | . . . 25 56 31 Level 2 11 | . . . . 16 31 Level 3 13 | . . . . 18 37 Level 4 . | . . . . . . Level 5 . | . . . . . . High Security . | . . . . . . Max Security . | . . . . . . Peak Influence 859 | 10 139 138 355 808 859 Initial 331 | . . . . 141 331 Average 304 | 1 49 34 180 422 567 Influence Increases 4086 | 15 358 183 881 1553 1096 Destroy 0b10 Robot/C 2480 | . 240 100 540 920 680 Destroy 0b10 Robot/NC 255 | 15 15 5 55 130 35 Destroy Leader 616 | . 56 20 156 238 146 Successful Hack 73 | . 17 . 16 35 5 Disable Machine 195 | . . . 15 75 105 Destroy Structure 107 | . . 13 24 35 35 Partial Spotted 30 | . . . . . 30 Lose Combat Pursuer 330 | . 30 45 75 120 60 Influence Decreases 3239 | 15 358 183 547 1101 1035 Entered New Map 648 | . . . . 193 455 Time Decay 2261 | 15 318 183 537 698 510 Lost Part 180 | . 40 . 10 60 70 Purge Threat 150 | . . . . 150 . Squads Dispatched 17 | . 2 . 1 7 7 Investigation 5 | . 2 . 1 2 . Extermination . | . . . . . . Reinforcement 7 | . . . . 4 3 Assault 4 | . . . . 1 3 Garrison 1 | . . . . . 1 Intercept . | . . . . . . Searches Triggered . | . . . . . . Construction Impeded 2 | . . . . 1 1 Haulers Reinforced . | . . . . . . Active Scanning Responses . | . . . . . . Cargo Convoy Interrupts . | . . . . . . Stealth | -11 -10 -10 -9 -8 -8 --------- Run | Yrd Mat Min Mat Mat Sto Distress Signals 8 | . . . 2 3 3 Communications Jammed . | . . . . . . Distress Signals . | . . . . . . Times Spotted 219 | . 22 9 46 85 57 Peak Tracking Total 12 | . 7 4 8 6 12 Tactical Retreats 15 | . 2 2 3 4 4 Traps | -11 -10 -10 -9 -8 -8 ------- Run | Yrd Mat Min Mat Mat Sto Traps Triggered 14 | . 5 . 1 1 7 Indirectly . | . . . . . . Trap Hack Attempts . | . . . . . . Triggered . | . . . . . . Disarmed . | . . . . . . Reprogrammed . | . . . . . . Reused . | . . . . . . Traps Extracted . | . . . . . . Installed . | . . . . . . Triggered . | . . . . . . Machines | -11 -10 -10 -9 -8 -8 ---------- Run | Yrd Mat Min Mat Mat Sto Machines Disabled 13 | . . . 1 5 7 Max in Single Turn 1 | . . . 1 1 1 Garrison Access 2 | . . . . 1 1 Machines Repaired . | . . . . . . Machines Dismantled . | . . . . . . Machines Sabotaged . | . . . . . . Overloaded Fab Kills . | . . . . . . Hacking | -11 -10 -10 -9 -8 -8 --------- Run | Yrd Mat Min Mat Mat Sto Machines Accessed 31 | . 4 . 9 10 8 Terminals 23 | . 4 . 6 7 6 Fabricators . | . . . . . . Repair Stations 3 | . . . 2 . 1 Recycling Units . | . . . . . . Scanalyzers 3 | . . . 1 2 . Garrison Access 2 | . . . . 1 1 Total Hacks 89 | . 11 . 21 38 19 Successful 41 | . 5 . 12 16 8 Failed 47 | . 6 . 8 22 11 Catastrophic 4 | . 1 . . 2 1 Database Lockouts 1 | . . . 1 . . Manual 42 | . 11 . 11 15 5 Terminals 65 | . 11 . 13 26 15 Fabricators . | . . . . . . Repair Stations 6 | . . . 3 . 3 Recycling Units . | . . . . . . Scanalyzers 13 | . . . 5 8 . Garrison Access 5 | . . . . 4 1 Terminal Hacks 13 | . 2 . 2 6 3 Part Schematic 4 | . 2 . . 2 . Robot Analysis 3 | . . . 1 2 . Prototype ID Bank 1 | . . . 1 . . Open Door 1 | . . . . . 1 Branch Access Points 1 | . . . . 1 . Unreport Threat 1 | . . . . 1 . Locate Traps 2 | . . . . . 2 Fabricator Hacks . | . . . . . . Repair Station Hacks 4 | . . . 2 . 2 Scan Component 2 | . . . 1 . 1 Repair 2 | . . . 1 . 1 Recycling Unit Hacks . | . . . . . . Scanalyzer 10 | . . . 4 6 . Insert Component 2 | . . . 2 . . Analyze 1 | . . . 1 . . Retrieve Study 7 | . . . 1 6 . Garrison Access Hacks 2 | . . . . 1 1 Seal Access 2 | . . . . 1 1 Unauthorized Hacks 12 | . 3 . 4 3 2 Terminals 12 | . 3 . 4 3 2 Botnet 8 | . 2 . 2 2 2 Operators 4 | . 1 . 2 1 . Fabricators . | . . . . . . Repair Stations . | . . . . . . Recycling Units . | . . . . . . Scanalyzers . | . . . . . . Garrison Access . | . . . . . . Data Cores Recovered . | . . . . . . Used . | . . . . . . Hacking Detections 24 | . 4 . 5 9 6 Full Trace Events 4 | . 1 . . 2 1 Feedback Events . | . . . . . . Feedback Blocked . | . . . . . . Robot Schematics Acquired . | . . . . . . Robots Built . | . . . . . . Authchips . | . . . . . . Time . | . . . . . . Total Robot Build Rating . | . . . . . . Part Schematics Acquired 5 | . 2 . 1 2 . Parts Built . | . . . . . . Authchips . | . . . . . . Time . | . . . . . . Total Part Build Rating . | . . . . . . Part Studies Acquired 7 | . . . 1 6 . Parts Repaired 2 | . . . 1 . 1 Time 146 | . . . 108 . 38 Parts Recycled . | . . . . . . Recycled Matter . | . . . . . . Retrieved Matter . | . . . . . . Retrieved Components . | . . . . . . Parts Scanalyzed 1 | . . . 1 . . Part Schematics Acquired 1 | . . . 1 . . Parts Damaged . | . . . . . . Bothacking | -11 -10 -10 -9 -8 -8 ------------ Run | Yrd Mat Min Mat Mat Sto Used RIF Installer . | . . . . . . Robots Hacked . | . . . . . . Non-combat . | . . . . . . Combat . | . . . . . . Robot Hacks Applied . | . . . . . . Relay Couplers Released . | . . . . . . Fabnet Peak Effective % . | . . . . . . Robots Rewired . | . . . . . . Allies Hacked . | . . . . . . Hacks Repelled . | . . . . . . Allies | -11 -10 -10 -9 -8 -8 -------- Run | Yrd Mat Min Mat Mat Sto Total Allies . | . . . . . . Largest Group . | . . . . . . Highest-Rated Group . | . . . . . . Highest-Rated Ally . | . . . . . . Total Orders . | . . . . . . Ally Attacks . | . . . . . . Total Damage . | . . . . . . Kills . | . . . . . . Allies Corrupted . | . . . . . . Allies Melted . | . . . . . . Intel | -11 -10 -10 -9 -8 -8 ------- Run | Yrd Mat Min Mat Mat Sto Active Infowar (turns) 2 | . . . . 2 . Terrain 2 | . . . . 2 . Robot Analysis Total 3 | . . . 1 2 . Derelict Logs Recovered 2 | . . 2 . . . Drone Launches . | . . . . . . Drone Recoveries . | . . . . . . Exploration | -11 -10 -10 -9 -8 -8 ------------- Run | Yrd Mat Min Mat Mat Sto Turns Passed 7967 | 93 998 765 1777 2953 1381 Spaces Moved 4475 | 57 568 470 1239 1518 623 Core 2 | 1 1 . . . . Treads 4 | . 4 . . . . Legs . | . . . . . . Wheels 4469 | 56 563 470 1239 1518 623 Hover . | . . . . . . Flight . | . . . . . . Fastest Speed 50 | 50 95 115 95 95 130 Average Speed 124 | 92 114 115 98 144 146 Slowest Speed 450 | 95 450 115 110 230 235 Overloaded Moves . | . . . . . . Propulsion Burnouts . | . . . . . . Robots Hopped . | . . . . . . Potential Cave-ins . | . . . . . . Cave-ins Triggered . | . . . . . . Exploration Rate (%) 71 | 4 61 90 96 97 82 Regions Visited 5 Branch Regions 2 Pre-discovered Areas 1 | . . 1 . . . Known Exits Taken 1 | . . . . 1 . Unknown Exits Taken 4 | 1 1 1 1 . . Scrap Searched 1 | . . 1 . . . Spaces Dug . | . . . . . . Terrain Destroyed 111 | . . 25 22 37 27 Melee . | . . . . . . Projectile 1 | . . . . 1 . AOE 110 | . . 25 22 36 27 Terrain Rammed . | . . . . . . Walls Destroyed . | . . . . . . Machines Disabled . | . . . . . . Actions | -11 -10 -10 -9 -8 -8 --------- Run | Yrd Mat Min Mat Mat Sto Total 6138 | 79 776 643 1685 2041 914 Wait 766 | 3 42 116 261 234 110 Move 4470 | 56 567 469 1238 1517 623 Hop . | . . . . . . Pick Up 89 | 6 30 7 17 22 7 Fast Attach 41 | 6 10 . 3 7 15 Attach 15 | . 4 . 3 4 4 Detach 3 | . 1 . . 1 1 Swap 115 | . 8 5 38 40 24 Drop 130 | . 26 10 43 32 19 Fire 509 | 8 88 36 82 184 111 Melee . | . . . . . . Ram . | . . . . . . Kick . | . . . . . . Crush . | . . . . . . Escape Stasis . | . . . . . . Rewire . | . . . . . . Trap . | . . . . . . Miscellaneous . | . . . . . . Route ------- -11/Scrapyard -10/Materials (discovered 4 exits: *Mat x3 / [*Min]) -10/Mines (discovered 3 exits: *Mat x2 / [*Sub]) -9/Materials (discovered 5 exits: *Mat x3 / [*Min x2]) -8/Materials (discovered 5 exits: [*Fac x3] / *Sto x2) -8/Storage History --------- Turn | Location | Event 16 | -11/Scrapyard | Discovered new exit (range 16) 94 | -11/Scrapyard | Entered Materials 137 | -10/Materials | Discovered new exit (range 9) 346 | -10/Materials | Build established: Mutant 715 | -10/Materials | Discovered new exit (range 9) 907 | -10/Materials | Discovered new exit (range 3) 953 | -10/Materials | Discovered new exit (range 11) 1092 | -10/Materials | Entered Mines 1099 | -10/Mines | Learned location of Storage (-8) 1107 | -10/Mines | Joined a pair of Derelicts in attacking an 0b10 outpost 1151 | -10/Mines | Deemed a non-threat by the Exiles lab entrance 1199 | -10/Mines | Met a Derelict bent on vengeance 1310 | -10/Mines | Core integrity fell below 50% 1398 | -10/Mines | Learned Materials terminal intel 1662 | -10/Mines | Found a damaged Exp. Sensor Array with a note attached 1667 | -10/Mines | Found Prototype Device 1690 | -10/Mines | Discovered new exit (range 12) 1845 | -10/Mines | Discovered new exit (range 11) 1850 | -10/Mines | Discovered new exit (range 8) 1857 | -10/Mines | Entered Materials 1857 | -9/Materials | Evolved 2 slots: Propulsion x1, Utility x1 1858 | -9/Materials | Loaded intel: 12 terminal locations 1963 | -9/Materials | Discovered new exit (range 12) 2145 | -9/Materials | Build established: Scavenger-Mutant 2153 | -9/Materials | Discovered new exit (range 7) 2279 | -9/Materials | Central database locked down 2279 | -9/Materials | Identified Exp. Sensor Array 2387 | -9/Materials | Discovered new exit (range 16) 2814 | -9/Materials | Repaired Exp. Sensor Array 2831 | -9/Materials | Discovered new exit (range 9) 3116 | -9/Materials | Discovered new exit (range 16) 3634 | -9/Materials | Entered another Materials area 3634 | -8/Materials | Evolved 2 slots: Propulsion x1, Utility x1 3708 | -8/Materials | Identified exit to Storage 4428 | -8/Materials | Discovered new exit (range 14) 4873 | -8/Materials | Discovered new exit (range 5) 5848 | -8/Materials | Core integrity fell below 50% 5891 | -8/Materials | Discovered new exit (range 3) 5938 | -8/Materials | Lost 4 parts (2n1u1w) 6034 | -8/Materials | First assault squad dispatched 6587 | -8/Materials | Entered Storage 6745 | -8/Storage | Found Prototype Launcher 6745 | -8/Storage | Identified Gui. Missile Launcher 6971 | -8/Storage | Garrison activated, responded to threat 7063 | -8/Storage | Destroyed 7 combat bots 7387 | -8/Storage | First assault squad dispatched 7459 | -8/Storage | Core integrity fell below 20% 7491 | -8/Storage | Destroyed 7 combat bots 7607 | -8/Storage | Repaired Hrd. Medium Armor Plating 7884 | -8/Storage | Lost 3 parts (1n1u1w) 7968 | -8/Storage | Destroyed by Y-45 Defender with Beam Rifle Last Messages --------------- 07855_ Slug penetrates A-02 Transporter. 07855_ A-02 Transporter destroyed. 07859_ Acquired 65 matter. 07862_ Acquired 61 matter. 07865_ Acquired Lgt. Angular Momentum Engine. 07869_ Acquired Lgt. Treads. 07872_ Acquired 10 matter. 07887_ R-06 Scavenger collects Particle Gun. 07896_ System corrupted: Matter fused (-8). 07898_ Slug penetrates Storage Shell. 07907_ Acquired 20 matter. 07912_ Slug penetrates Storage Shell. 07914_ Terminal disabled. 07928_ O-16 Technician: "IFF HANDSHAKE FAILED. SECURING TERMINAL." 07937_ ALERT: Hostiles spotted, dispatching reinforcements to Terminal S010. 07961_ Slug penetrates Y-45 Defender. 07962_ Critical hit (Burn: +37). 07964_ Slug penetrates Y-45 Defender. 07967_ Y-45 Defender suffers critical hit (Destroy). Map ----- +----------------------------------------------------+ | ???????# ?? ## #????????? | | ???????############ #????????? | | ??????????????????# #????????? | | ??????????????#####+####?????? | | ??????????????# #?????? | | ??????????????# "" "" #?????? | | ??????????????# "!*%" #?????? | | ??????????????# "" ""? #?????? | | ???????###????# " """?#?????? | | ???????#"""???# "!]!" #?????? | | ?????###"Y"#??# "" "" #?????? | | ?????? ?# #?????? | | ?????? """ ?# #?????? | | ???#?? """ #/###"########"T | | ???# # """ # | | ???# # / | | ???# # """ # | | ???# ? """ ## | | ???# ? """ ??# " """ "" | | ???# ? ??# "T """ "" | | ???# ##### #???# "" """ "" | | ???# ########### | | ???# Y | | ???# ################## | | ???# #?????????????????? ?? | | ???# @ #????????????????????? | | ???# #????????????????????? | | ???# #????????????????????? | | ???# #????????????????????? | | ???######????????????????????? | | ?????????????????????????????? | | ?????????????????????????????? | | ?????????????????????????????? | | ?????????????????????????????? | | | | | | | | | | | | | | | | | | | | | | | | | | | | | | | | | +----------------------------------------------------+ Best States ------------- Heat Dissipation 58 Energy Generation 16 Energy Capacity 290 Matter Stores 300 Matter Capacity 300 Sight Range 16 Terrain Scan Density 10 Armor Coverage 450 Power Shielding 66 Utility Shielding 66 Evasion (%) 44 Targeting Accuracy 8 Core Analysis 6 Armor Integrity Analysis 30 Recoil Reduction 1 Authchip Count 2 Item Schematics ----------------- Hcp. Storage Unit | -10/Materials | Hacked Huge Storage Unit | -10/Materials | Hacked Cooling System | -9/Materials | Scanalyzed Imp. Sensor Array | -8/Materials | Hacked Imp. Signal Interpreter | -8/Materials | Hacked Robot Schematics ------------------ None Fabricated ------------ Nothing Repaired ---------- Exp. Sensor Array | 62% | -9/Materials Hrd. Medium Armor Plating | 2% | -8/Storage Studied --------- Hover Unit | -9/Materials | Hacked Gravmag System | -8/Materials | Hacked Imp. Hover Unit | -8/Materials | Hacked Mni. Grenade Launcher | -8/Materials | Hacked Hvy. Assault Cannon | -8/Materials | Hacked Missile Launcher | -8/Materials | Hacked Wheel | -8/Materials | Hacked Alien Tech Used ----------------- None Achievements -------------- None Challenges ------------ None Game ------ Seed FlakBorgField Manual? 0 Play Time 00:58:33 Cumulative 622.0 hours Start 2026.09.07 @ 00:29:58 End 2026.09.07 @ 01:28:16 Sessions 1 Manual Loads 0 Difficulty Rogue Special Mode None Game No. 272 Rogue 272 Adventurer 0 Explorer 0 Win Type - Total 12 Types 8/0/3/0/0/0/1/0/0/0 Lore% 80 Gallery% 74 Achievement% 55 Wizard Run 0 Options --------- Layout 0 ASCII 0 Keyboard 1 Movement Vi Keybinds 0 Fullscreen 2 Font 18/SmallcapsGlow Map View 76x50 Zoom Use 0% Tactical HUD 1 Map Filters NONE Filters NONE Steam 1 RUN: cea65e0a-459d-4b9a-a05b-8861c4f580bd